bitfinex-derivatives/quotes_BTCF0:USTF0_20250327
["timestamp","ask_amount","ask_price","bid_price","bid_amount"]
[1743085060150,0.00017342,86516.0,86514.0,0.1156192]
[1743085060339,0.11579262,86516.0,86515.0,0.2529]
[1743085060545,0.11579262,86516.0,86515.0,0.25504]
[1743085060743,0.35589262,86516.0,86515.0,0.00164]
[1743085060947,0.1156192,86515.0,86514.0,0.12796]
[1743085061145,0.1156192,86515.0,86514.0,0.00164]
[1743085061954,0.3557192,86515.0,86514.0,0.00164]
[1743085062651,0.0578058,86521.0,86514.0,0.00164]
[1743085062652,0.01939668,86526.0,86514.0,0.15164]
[1743085062843,0.2401,86560.0,86543.0,0.1155818]
[1743085063043,0.3608,86547.0,86544.0,0.2325]
[1743085063250,0.1155791,86545.0,86544.0,0.23418]
[1743085063453,0.4763791,86545.0,86544.0,0.1296]
[1743085063955,0.4763791,86545.0,86544.0,0.12792]
[1743085064256,0.4763791,86545.0,86544.0,0.12956]
[1743085064456,0.1155885,86538.0,86537.0,8e-05]
[1743085064649,0.4763885,86538.0,86537.0,8e-05]
[1743085064844,0.4763885,86538.0,86536.0,0.00017332]
[1743085064845,0.1155898,86537.0,86536.0,0.00017332]
[1743085065043,0.1155898,86537.0,86517.0,0.0578081]
[1743085065044,0.1156065,86525.0,86523.0,0.1156076]
[1743085065249,0.3702076,86524.0,86523.0,0.00164]
[1743085065654,0.3702076,86524.0,86516.0,0.12788]
[1743085065655,0.1156136,86520.0,86516.0,0.12788]
[1743085065958,0.2546,86519.0,86517.0,0.1156154]
[1743085066254,0.2546,86519.0,86518.0,0.1156152]
[1743085066451,0.2546,86519.0,86518.0,0.1172552]
[1743085066861,0.3702139,86519.0,86518.0,0.00164]
[1743085067246,0.2546,86519.0,86518.0,0.00164]
[1743085067447,0.2546,86519.0,86518.0,0.1172552]
[1743085067648,0.3702139,86519.0,86518.0,0.1172552]
[1743085068045,0.3702139,86519.0,86518.0,0.00164]
[1743085068250,0.4702139,86519.0,86518.0,0.00164]
[1743085068549,0.3546,86519.0,86518.0,0.1172552]
[1743085069155,0.4702139,86519.0,86518.0,0.00164]
[1743085069460,0.8310139,86519.0,86518.0,0.00164]
[1743085069849,0.1156259,86510.0,86509.0,0.00017332]
[1743085070056,0.4764259,86510.0,86509.0,0.00017332]
[1743085070250,0.4764259,86510.0,86509.0,0.00181332]
[1743085070455,0.4764259,86510.0,86509.0,0.00017332]
[1743085070655,0.9728259,86510.0,86509.0,0.00017332]
[1743085070858,0.9572,86510.0,86509.0,0.11580052]
[1743085071056,0.9572,86510.0,86509.0,0.11748052]
[1743085071256,1.0728259,86510.0,86509.0,0.11748052]
[1743085071555,1.0728259,86510.0,86509.0,0.11580052]
[1743085071757,1.0728259,86510.0,86509.0,0.00181332]
[1743085071952,1.0728259,86510.0,86509.0,0.11580052]
[1743085074162,1.0728259,86510.0,86509.0,0.00017332]
[1743085074359,1.0728259,86510.0,86509.0,0.11580052]
[1743085076263,0.5964,86510.0,86509.0,0.11580052]
[1743085076462,0.09982668,86510.0,86509.0,0.47824052]
[1743085077060,0.09982668,86510.0,86509.0,0.97114052]
[1743085078665,2e-08,86527.0,86526.0,0.1156045]
[1743085078858,0.4763631,86557.0,86556.0,0.1155644]
[1743085079060,0.1155698,86553.0,86552.0,0.1155687]
[1743085079261,0.1155698,86553.0,86552.0,0.1172087]
[1743085079563,0.1155698,86553.0,86552.0,0.6086087]
[1743085079564,0.4863,86553.0,86552.0,0.6086087]
[1743085079760,0.2508,86553.0,86552.0,0.61997211]
[1743085079960,0.3658,86557.0,86556.0,0.1155644]
[1743085080155,0.4813631,86557.0,86556.0,0.1172044]
[1743085080366,0.005,86557.0,86556.0,0.1172044]
[1743085080668,0.00017332,86561.0,86560.0,0.1155591]
[1743085080867,0.00017332,86561.0,86560.0,0.1171991]
[1743085081260,0.00017332,86561.0,86560.0,0.3571991]
[1743085082460,0.00517332,86561.0,86560.0,0.3571991]
[1743085082861,0.12073112,86561.0,86560.0,0.3571991]
[1743085083064,0.00517332,86561.0,86560.0,0.3571991]
[1743085083458,0.34077332,86561.0,86560.0,0.3571991]
[1743085083764,0.45633112,86561.0,86560.0,0.3571991]
[1743085083967,0.57927332,86561.0,86560.0,0.3571991]
[1743085084165,0.10917332,86561.0,86560.0,0.7179991]
[1743085084975,0.00917332,86561.0,86560.0,0.7179991]
[1743085085365,0.2316,86576.0,86560.0,0.60244]
[1743085085673,0.4763311,86581.0,86580.0,0.1155324]
[1743085085867,0.4763311,86581.0,86580.0,0.1172124]
[1743085086069,0.4763311,86581.0,86580.0,0.00168]
[1743085086268,0.1155404,86574.0,86573.0,0.1155394]
[1743085086574,0.1155391,86575.0,86574.0,8e-05]
[1743085086774,0.3597391,86575.0,86574.0,0.1171804]
[1743085086964,0.3597391,86575.0,86574.0,0.00164]
[1743085087164,0.1155458,86570.0,86569.0,0.115627]
[1743085087375,0.4763458,86570.0,86569.0,0.117227]
[1743085087673,0.4763458,86570.0,86569.0,0.00168]
[1743085087864,0.1155511,86567.0,86566.0,0.1155504]
[1743085088062,0.1155511,86567.0,86566.0,0.00164]
[1743085088267,0.1155538,86564.0,86563.0,8e-05]
[1743085088465,0.1155604,86559.0,86558.0,0.1156414]
[1743085088661,0.4763604,86559.0,86558.0,0.00172]
[1743085088869,0.4763604,86559.0,86558.0,8e-05]
[1743085089070,0.1155711,86551.0,86550.0,0.1155721]
[1743085089267,0.1155711,86551.0,86550.0,0.1173321]
[1743085089268,0.3608,86551.0,86550.0,0.1173321]
[1743085089570,0.3608,86551.0,86550.0,0.12592786]
[1743085090375,0.2468,86552.0,86551.0,0.1155711]
[1743085090573,0.2468,86552.0,86551.0,0.7279711]
[1743085091474,0.3468,86552.0,86551.0,0.7279711]
[1743085091669,0.4623698,86552.0,86551.0,0.7279711]
[1743085091862,0.4623698,86552.0,86551.0,0.00172]
[1743085092061,0.8231698,86552.0,86551.0,0.00272]
[1743085092262,0.8231698,86552.0,86551.0,0.1165711]
[1743085092467,0.8231698,86552.0,86551.0,0.1182111]
[1743085092667,0.8231698,86552.0,86551.0,0.00264]
[1743085092873,0.8231698,86552.0,86551.0,0.00164]
[1743085093078,0.8231698,86552.0,86551.0,0.00264]
[1743085093480,0.8231698,86552.0,86551.0,0.1182111]
[1743085093673,0.8231698,86552.0,86551.0,0.00264]
[1743085093974,0.8241698,86552.0,86551.0,0.00264]
[1743085094178,0.8241698,86552.0,86551.0,0.001]
[1743085094574,0.1155765,86547.0,86546.0,0.1155778]
[1743085094776,0.1155778,86546.0,86545.0,0.1156591]
[1743085095470,0.1155778,86546.0,86545.0,0.1173391]
[1743085095670,0.6014778,86546.0,86545.0,0.1173391]
[1743085095871,0.6014778,86546.0,86545.0,8e-05]
[1743085096171,0.7014778,86546.0,86545.0,0.1156591]
[1743085097467,0.7014778,86546.0,86545.0,8e-05]
[1743085097675,0.1155818,86543.0,86542.0,0.00017332]
[1743085097872,0.4763818,86543.0,86542.0,0.00017332]
[1743085098869,0.5773818,86543.0,86542.0,0.11575642]
[1743085099082,0.5773818,86543.0,86542.0,0.00017332]
[1743085099576,0.5783818,86543.0,86542.0,0.11575642]
[1743085099772,0.4628,86543.0,86542.0,0.11575642]
[1743085099977,0.4628,86543.0,86542.0,0.34703642]
[1743085100180,0.10174668,86543.0,86542.0,0.58813642]
[1743085100380,0.10174668,86543.0,86542.0,0.83843642]
[1743085100772,0.10074668,86543.0,86542.0,0.83843642]
[1743085101382,0.001,86543.0,86542.0,0.83843642]
[1743085101583,0.4871,86553.0,86552.0,0.1155698]
[1743085101776,0.4871,86553.0,86552.0,0.2448498]
[1743085101979,0.4871,86553.0,86552.0,0.7405498]
[1743085101980,0.6026684,86553.0,86552.0,0.7405498]
[1743085102179,0.4871,86553.0,86552.0,0.7405498]
[1743085102478,0.7026684,86553.0,86552.0,0.7405498]
[1743085103081,0.7026684,86553.0,86552.0,0.7415498]
[1743085103281,0.7026684,86553.0,86552.0,0.62698]
[1743085104179,0.7026684,86553.0,86552.0,0.7425498]
[1743085104886,0.7026684,86553.0,86552.0,0.7415498]
[1743085105290,1.0634684,86553.0,86552.0,0.7405498]
[1743085105784,1.0634684,86553.0,86552.0,0.62498]
[1743085105991,1.0634684,86553.0,86552.0,0.7415498]
[1743085106283,1.0634684,86553.0,86552.0,0.00264]
[1743085106488,0.0577867,86551.0,86550.0,0.1155721]
[1743085106689,0.2311494,86551.0,86550.0,0.1172121]
[1743085107086,0.8479,86553.0,86552.0,0.1155698]
[1743085107289,0.8479,86553.0,86552.0,0.1172098]
[1743085107487,0.6167,86553.0,86552.0,0.5938098]
[1743085108490,0.7167,86553.0,86552.0,0.5948098]
[1743085109893,0.7167,86553.0,86552.0,0.5958098]
[1743085110393,0.8322684,86553.0,86552.0,0.5958098]
[1743085110992,0.9513,86553.0,86552.0,0.5958098]
[1743085111697,1.0668684,86553.0,86552.0,0.5958098]
[1743085111904,1.0668684,86553.0,86552.0,0.2468098]
[1743085113207,1.0668684,86553.0,86552.0,0.1182098]
[1743085113402,1.0668684,86553.0,86552.0,0.2441698]
[1743085113606,1.0668684,86553.0,86552.0,0.2458498]
[1743085113910,0.31545069,86553.0,86552.0,0.2448498]
[1743085114108,0.00017332,86559.0,86558.0,0.1155618]
[1743085114300,0.4895,86579.0,86578.0,0.1155351]
[1743085114612,0.4895,86579.0,86578.0,0.12843096]
[1743085115610,0.6050337,86579.0,86578.0,0.00164]
[1743085115905,0.1155377,86576.0,86575.0,0.1155381]
[1743085116103,0.1155377,86576.0,86575.0,0.1171781]
[1743085116306,0.2155377,86576.0,86575.0,0.00164]
[1743085116507,0.1155391,86575.0,86574.0,8e-05]
[1743085116706,0.1155391,86575.0,86574.0,0.1156204]
[1743085116907,0.3647391,86575.0,86574.0,0.1173404]
[1743085117205,0.5955391,86575.0,86574.0,0.1173404]
[1743085117411,0.5955391,86575.0,86574.0,0.0018]
[1743085117611,0.5955391,86575.0,86574.0,8e-05]
[1743085117812,0.6573086,86575.0,86574.0,0.1155404]
[1743085118019,0.1155431,86572.0,86571.0,8e-05]
[1743085118311,0.1155444,86571.0,86570.0,0.00017332]
[1743085118508,0.6041444,86571.0,86570.0,0.00017332]
[1743085118916,0.1155578,86561.0,86560.0,8e-05]
[1743085119117,0.4763578,86561.0,86560.0,0.1172791]
[1743085119299,0.4763578,86561.0,86560.0,0.1189191]
[1743085119506,0.7157578,86561.0,86560.0,0.1172791]
[1743085119713,0.7157578,86561.0,86560.0,0.00172]
[1743085120009,0.1155591,86560.0,86559.0,0.1155604]
[1743085120406,0.3549591,86560.0,86559.0,0.1172004]
[1743085121409,0.2394,86560.0,86559.0,0.1172004]
[1743085121605,0.2394,86560.0,86559.0,0.3523004]
[1743085121806,0.2394,86560.0,86559.0,0.4798204]
[1743085122002,0.2394,86560.0,86559.0,0.7232204]
[1743085122203,0.4763553,86563.0,86562.0,0.1155564]
[1743085122503,0.4763553,86563.0,86562.0,0.1171964]
[1743085122705,0.4763553,86563.0,86562.0,0.48444]
[1743085122902,0.7239553,86563.0,86562.0,0.5999964]
[1743085123313,0.8239553,86563.0,86562.0,0.5999964]
[1743085123817,0.8249553,86563.0,86562.0,0.5999964]
[1743085124003,0.8259553,86563.0,86562.0,0.5999964]
[1743085124202,0.8259553,86563.0,86562.0,0.00164]
[1743085125211,0.8116553,86563.0,86562.0,0.1171964]
[1743085125716,0.8116553,86563.0,86562.0,0.47324]
[1743085126216,0.8116553,86563.0,86562.0,0.5887964]
[1743085126518,0.8116553,86563.0,86562.0,0.00164]
[1743085127016,0.8116553,86563.0,86562.0,0.1171964]
[1743085127213,0.8116553,86563.0,86562.0,0.00164]
[1743085128206,0.8116553,86563.0,86562.0,0.1171964]
[1743085129116,0.8116551,86563.0,86562.0,0.1171964]
[1743085129418,0.102,86563.0,86562.0,0.1171964]
[1743085129603,0.2175551,86563.0,86562.0,0.5996964]
[1743085130212,0.102,86563.0,86562.0,0.5996964]
[1743085131416,0.2175551,86563.0,86562.0,0.5996964]
[1743085131720,0.4628,86563.0,86562.0,0.12912]
[1743085132018,0.5783551,86563.0,86562.0,0.2446764]
[1743085132220,0.8082551,86563.0,86562.0,0.7332764]
[1743085132809,0.6927,86563.0,86562.0,0.7332764]
[1743085133322,0.8082551,86563.0,86562.0,0.7332764]
[1743085133913,0.8082551,86563.0,86562.0,0.00164]
[1743085134114,0.1155564,86562.0,86561.0,0.32069234]
[1743085134313,0.1155564,86562.0,86561.0,0.32241234]
[1743085134513,0.3570564,86562.0,86561.0,0.32241234]
[1743085134917,0.3570564,86562.0,86561.0,0.20685454]
[1743085135118,0.3570564,86562.0,86561.0,0.00172]
[1743085135309,0.3580564,86562.0,86561.0,0.00172]
[1743085136019,0.3580564,86562.0,86561.0,0.1172778]
[1743085136220,0.4580564,86562.0,86561.0,0.1172778]
[1743085136417,0.4590564,86562.0,86561.0,0.3566778]
[1743085137416,0.4590564,86562.0,86561.0,0.00172]
[1743085137719,0.4590564,86562.0,86561.0,0.1172778]
[1743085138821,0.4590564,86562.0,86561.0,0.00172]
[1743085139623,0.6943564,86562.0,86561.0,0.00172]
[1743085139810,0.1155631,86557.0,86556.0,0.20513454]
[1743085140011,0.1155631,86557.0,86556.0,0.20625454]
[1743085140224,0.1155711,86551.0,86550.0,0.2728887]
[1743085140420,0.1155711,86551.0,86550.0,0.2736887]
[1743085140421,0.4772111,86551.0,86550.0,0.2736887]
[1743085142222,1.0290111,86551.0,86550.0,0.8690012]
[1743085142419,1.0290111,86551.0,86550.0,0.2747287]
[1743085142623,1.0290111,86551.0,86550.0,0.2738887]
[1743085142817,1.0290111,86551.0,86550.0,0.2746887]
[1743085143420,1.0290111,86551.0,86550.0,0.2738887]
[1743085143927,1.0290111,86551.0,86550.0,0.2747287]
[1743085144225,1.04060208,86551.0,86550.0,0.1174125]
[1743085144524,1.0290111,86551.0,86550.0,0.1165725]
[1743085144721,1.0290111,86551.0,86550.0,0.001]
[1743085144915,1.0290111,86551.0,86550.0,0.00284]
[1743085145121,1.0290111,86551.0,86550.0,0.002]
[1743085146024,1.0290111,86551.0,86550.0,0.0028]
[1743085146225,1.0290111,86551.0,86550.0,0.002]
[1743085148122,0.1155765,86547.0,86546.0,8e-05]
[1743085148432,0.1155765,86547.0,86542.0,0.00017332]
[1743085148433,0.1155818,86543.0,86542.0,0.00017332]
[1743085148618,0.1155871,86539.0,86534.0,8e-05]
[1743085148814,0.1155978,86531.0,86530.0,0.28148408]
[1743085149125,0.1155978,86531.0,86530.0,0.2737687]
[1743085149323,0.5921978,86531.0,86530.0,0.2736887]
[1743085149527,0.5922378,86531.0,86530.0,0.2736887]
[1743085150214,0.5922378,86531.0,86530.0,0.3952879]
[1743085150417,0.5922378,86531.0,86530.0,0.6421879]
[1743085150927,0.6932378,86531.0,86530.0,0.5275887]
[1743085151116,0.6932378,86531.0,86530.0,0.2806887]
[1743085151313,0.70505573,86531.0,86530.0,0.2798887]
[1743085151518,0.6932378,86531.0,86530.0,0.0078]
[1743085151719,0.9374378,86531.0,86530.0,0.0078]
[1743085152421,0.9374378,86531.0,86530.0,0.0068]
[1743085153829,0.9364378,86531.0,86530.0,0.0058]
[1743085154023,0.9364378,86531.0,86530.0,0.0068]
[1743085154531,0.10084,86531.0,86530.0,0.1223992]
[1743085154830,0.1,86531.0,86530.0,0.1223992]
[1743085155130,0.00017332,86539.0,86538.0,0.1155885]
[1743085155326,0.13819141,86550.0,86549.0,0.1155738]
[1743085155521,0.11617251,86550.0,86549.0,0.2438138]
[1743085155718,0.115571,86552.0,86551.0,0.1155698]
[1743085155919,0.115568,86554.0,86553.0,0.1155671]
[1743085156235,0.11616801,86554.0,86553.0,0.5738671]
[1743085156626,0.00060001,86554.0,86553.0,0.5738671]
[1743085156823,0.11616711,86554.0,86553.0,0.5738671]
[1743085157424,0.21716711,86554.0,86553.0,0.5738671]
[1743085157624,0.45016711,86554.0,86553.0,0.5738671]
[1743085157829,0.10160001,86554.0,86553.0,0.5748671]
[1743085158227,0.10160001,86554.0,86553.0,0.58665902]
[1743085158736,0.001,86554.0,86553.0,0.58665902]
[1743085158927,0.28739633,86558.0,86557.0,0.1155631]
[1743085159234,0.0008,86558.0,86557.0,0.1163631]
[1743085159939,0.1155601,86560.0,86559.0,0.1733373]
[1743085160228,0.05795162,86562.0,86561.0,0.1155578]
[1743085160432,0.0008,86562.0,86561.0,0.1163578]
[1743085160630,0.1155364,86577.0,86576.0,0.0577682]
[1743085160828,0.1155391,86575.0,86574.0,0.1733091]
[1743085161023,0.11657911,86575.0,86574.0,0.1743491]
[1743085161235,0.11657911,86575.0,86574.0,0.18576964]
[1743085161436,0.21657911,86575.0,86574.0,0.18576964]
[1743085162137,0.45807911,86575.0,86574.0,0.18576964]
[1743085162435,0.45807911,86575.0,86574.0,0.19435827]
[1743085163727,0.46007911,86575.0,86574.0,0.19435827]
[1743085163934,0.46407911,86575.0,86574.0,0.19435827]
[1743085164530,0.34854001,86575.0,86574.0,0.19435827]
[1743085164731,0.10704001,86575.0,86574.0,0.19435827]
[1743085165130,0.22257911,86575.0,86574.0,0.19435827]
[1743085166038,0.49884313,86596.0,86574.0,0.38184917]
[1743085166235,0.36216,86589.0,86588.0,0.1155217]
[1743085166434,0.4776804,86589.0,86588.0,0.1169617]
[1743085166835,0.36216,86589.0,86588.0,0.1169617]
[1743085167034,0.36216,86589.0,86588.0,0.5952617]
[1743085167935,0.4826804,86589.0,86588.0,0.5952617]
[1743085168237,0.46716,86589.0,86588.0,0.5952617]
[1743085168434,0.10636,86589.0,86588.0,0.5952617]
[1743085169235,0.08796,86589.0,86588.0,0.5952617]
[1743085169438,0.3608,86615.0,86599.0,0.1155071]
[1743085169639,0.3608,86602.0,86599.0,0.2445071]
[1743085170233,0.3608,86603.0,86599.0,0.7263071]
[1743085170433,0.2155057,86600.0,86599.0,0.48356]
[1743085170634,0.2155057,86600.0,86599.0,0.00176]
[1743085170836,0.2155057,86600.0,86597.0,0.1155095]
[1743085170837,0.1155084,86598.0,86597.0,0.1155095]
[1743085171035,0.6469615,86599.0,86598.0,0.1155084]
[1743085171251,0.5314535,86599.0,86598.0,0.1173084]
[1743085171632,0.4737,86599.0,86598.0,0.1173084]
[1743085171837,0.5892071,86599.0,86598.0,0.1173084]
[1743085172340,0.6892071,86599.0,86598.0,0.0018]
[1743085172540,0.5737,86599.0,86598.0,0.1173084]
[1743085172741,0.6892071,86599.0,86598.0,0.1173084]
[1743085172943,0.6902071,86599.0,86598.0,0.1173084]
[1743085173243,0.5747,86599.0,86598.0,0.1173084]
[1743085173430,0.6902071,86599.0,86598.0,0.1173084]
[1743085175245,0.5747,86599.0,86598.0,0.1173084]
[1743085175441,0.6902071,86599.0,86598.0,0.1173084]
[1743085175946,0.5747,86599.0,86598.0,0.1173084]
[1743085177246,0.6902071,86599.0,86598.0,0.1173084]
[1743085177649,0.5747,86599.0,86598.0,0.1173084]
[1743085178953,0.5747,86599.0,86598.0,0.5701084]
[1743085179848,0.101,86599.0,86598.0,0.5701084]
[1743085180043,0.001,86599.0,86598.0,0.5701084]
[1743085180747,0.2252,86599.0,86598.0,0.5701084]
[1743085180946,0.471,86599.0,86598.0,0.5701084]
[1743085181250,0.571,86599.0,86598.0,0.5701084]
[1743085185655,0.571,86599.0,86598.0,0.6971884]
[1743085189249,0.09882041,86599.0,86598.0,0.6971884]
[1743085189454,0.1,86600.0,86599.0,0.1155071]
[1743085189649,0.024266,86600.0,86599.0,0.5785471]
[1743085189846,0.2226,86613.0,86612.0,0.1154897]
[1743085190051,0.2226,86613.0,86612.0,0.12895896]
[1743085190251,0.2226,86613.0,86612.0,0.59015896]
[1743085191155,0.2256,86613.0,86612.0,0.59015896]
[1743085191549,0.3608,86633.0,86622.0,0.0577378]
[1743085191852,0.3608,86633.0,86628.0,0.1154684]
[1743085192057,0.3608,86633.0,86628.0,0.1172284]
[1743085192451,0.2565113,86633.0,86628.0,0.25582602]
[1743085192760,8e-05,86654.0,86641.0,0.1]
[1743085192955,8e-05,86654.0,86643.0,0.057724]
[1743085193154,8e-05,86654.0,86644.0,0.0577234]
[1743085193454,8e-05,86654.0,86651.0,0.0577182]
[1743085194053,8e-05,86654.0,86651.0,0.1731551]
[1743085194054,0.20622776,86652.0,86651.0,0.1731551]
[1743085194248,0.20622776,86652.0,86651.0,0.00184]
[1743085194452,0.32166416,86652.0,86651.0,0.01172793]
[1743085194761,0.32166416,86652.0,86646.0,0.1154434]
[1743085194762,0.1154389,86651.0,86650.0,0.1154384]
[1743085194959,0.4134566,86651.0,86650.0,0.00188]
[1743085195153,0.20622776,86652.0,86651.0,0.1154377]
[1743085195348,0.44652776,86652.0,86651.0,0.1171977]
[1743085195553,0.44652776,86652.0,86651.0,0.01307599]
[1743085195754,0.92476416,86652.0,86651.0,0.01307599]
[1743085196055,0.92476416,86652.0,86651.0,0.01131599]
[1743085196250,0.1154377,86651.0,86650.0,8e-05]
[1743085196559,0.30822776,86652.0,86651.0,0.1154377]
[1743085196761,0.30822776,86652.0,86651.0,0.5698377]
[1743085197149,0.42366416,86652.0,86651.0,0.5698377]
[1743085197454,0.42166416,86652.0,86651.0,0.4544]
[1743085197655,0.42166416,86652.0,86651.0,0.5698377]
[1743085198160,0.42366416,86652.0,86651.0,0.5698377]
[1743085198961,0.42366416,86652.0,86651.0,0.4544]
[1743085198962,0.2174364,86652.0,86651.0,0.4544]
[1743085199157,0.5782364,86652.0,86651.0,0.0018]
[1743085199558,0.1154377,86651.0,86650.0,8e-05]
[1743085199763,0.1154431,86647.0,86646.0,0.01139104]
[1743085200056,0.1731777,86642.0,86641.0,0.1154506]
[1743085200256,0.4795,86646.0,86639.0,0.00201321]
[1743085200461,0.4795,86646.0,86644.0,0.1154457]
[1743085200662,0.4795,86646.0,86645.0,0.1154457]
[1743085200866,0.4795,86646.0,86645.0,0.5797457]
[1743085201164,0.1,86651.0,86650.0,0.1154391]
[1743085201356,0.1,86651.0,86650.0,0.1171991]
[1743085201555,0.3608,86655.0,86652.0,0.1154356]
[1743085201762,0.3578337,86654.0,86652.0,0.0018]
[1743085201956,0.4819,86654.0,86653.0,0.1154351]
[1743085202157,0.4819,86654.0,86653.0,0.1171951]
[1743085202667,0.4819,86654.0,86653.0,0.5774951]
[1743085203260,0.5819,86654.0,86653.0,0.5774951]
[1743085204761,0.6973337,86654.0,86653.0,0.00176]
[1743085204960,0.5819,86654.0,86653.0,0.1171951]
[1743085205165,0.5839,86654.0,86653.0,0.1171951]
[1743085205761,0.6993337,86654.0,86653.0,0.00176]
[1743085206265,0.1154471,86646.0,86645.0,0.1154454]
[1743085206568,0.1154471,86646.0,86645.0,0.0018]
[1743085207060,0.5762471,86646.0,86645.0,0.0018]
[1743085207261,0.1154524,86642.0,86641.0,0.115451]
[1743085207455,0.1154524,86640.0,86637.0,8e-05]
[1743085207767,0.0577255,86641.0,86637.0,8e-05]
[1743085207768,0.1154519,86641.0,86640.0,0.1154488]
[1743085208063,0.1154519,86641.0,86640.0,0.00176]
[1743085208256,0.1154519,86641.0,86632.0,8e-05]
[1743085208257,0.1154617,86633.0,86632.0,8e-05]
[1743085208453,0.4762617,86633.0,86632.0,0.00184]
[1743085208859,0.7160617,86633.0,86632.0,0.00176]
[1743085209053,0.6006,86633.0,86630.0,0.2728887]
[1743085209256,0.1154644,86631.0,86630.0,0.2741287]
[1743085209465,0.11670441,86631.0,86630.0,0.2741287]
[1743085209666,0.59530671,86631.0,86630.0,0.2741287]
[1743085210268,0.1154737,86624.0,86623.0,0.00017311]
[1743085210466,0.4771137,86624.0,86623.0,0.00101311]
[1743085211168,0.4771137,86624.0,86613.0,0.41523535]
[1743085211169,0.1154871,86614.0,86613.0,0.41523535]
[1743085211361,0.1155057,86600.0,86599.0,0.00173192]
[1743085211565,0.1155057,86600.0,86599.0,0.11799692]
[1743085211768,0.1161857,86600.0,86599.0,0.11783692]
[1743085211967,0.47708,86600.0,86599.0,0.11783692]
[1743085212164,0.47708,86600.0,86599.0,0.12665807]
[1743085212371,0.57708,86600.0,86599.0,0.61335807]
[1743085212572,0.6925857,86600.0,86599.0,0.61335807]
[1743085213062,0.6925857,86600.0,86599.0,0.61435807]
[1743085213261,0.6925857,86600.0,86599.0,0.01215307]
[1743085213567,0.6925857,86600.0,86599.0,0.0016]
[1743085213965,0.6925857,86600.0,86599.0,0.001]
[1743085214162,0.6925857,86600.0,86599.0,0.00188]
[1743085214766,0.1155164,86592.0,86591.0,0.00017321]
[1743085214965,0.47691641,86592.0,86591.0,0.00077321]
[1743085215967,0.57691641,86592.0,86591.0,0.00077321]
[1743085216268,0.57691641,86592.0,86591.0,0.00177321]
[1743085216870,0.57691641,86592.0,86591.0,0.00117321]
[1743085217470,0.1155284,86583.0,86582.0,8e-05]
[1743085217672,0.47692841,86583.0,86575.0,0.00855594]
[1743085217855,0.1155377,86576.0,86575.0,0.00064]
[1743085218058,0.1155377,86576.0,86575.0,0.1167791]
[1743085218059,0.11613771,86576.0,86575.0,0.1167791]
[1743085218273,0.11613771,86576.0,86575.0,0.1161391]
[1743085218464,0.11613771,86576.0,86575.0,0.0006]
[1743085218672,0.68133771,86576.0,86575.0,0.0006]
[1743085219558,0.68133771,86576.0,86575.0,0.0096]
[1743085220166,1.04213771,86576.0,86575.0,0.0096]
[1743085220364,1.04213771,86576.0,86575.0,0.009]
[1743085220760,0.92660001,86576.0,86555.0,0.12688]
[1743085220962,0.1155484,86568.0,86563.0,0.1155539]
[1743085221170,0.11614841,86568.0,86567.0,0.00077321]
[1743085221472,0.11614841,86568.0,86567.0,0.0122932]
[1743085221669,0.11614841,86568.0,86567.0,0.00077321]
[1743085221878,0.11614841,86568.0,86561.0,8e-05]
[1743085221879,0.1155538,86564.0,86561.0,8e-05]
[1743085222068,0.4763564,86562.0,86561.0,8e-05]
[1743085222270,0.0577824,86556.0,86552.0,0.00173288]
[1743085222470,0.1155684,86553.0,86552.0,0.00173288]
[1743085222669,0.1162884,86553.0,86552.0,0.22283288]
[1743085222865,0.1155805,86544.0,86541.0,0.3608]
[1743085223066,0.4001727,86543.0,86542.0,8e-05]
[1743085223265,0.9938727,86543.0,86542.0,0.00068]
[1743085223569,0.1155831,86542.0,86541.0,0.00855064]
[1743085223775,0.1163831,86542.0,86541.0,0.1162645]
[1743085224168,0.1163831,86542.0,86541.0,0.00068]
[1743085224370,0.1113831,86542.0,86541.0,0.00068]
[1743085224563,0.2063831,86542.0,86541.0,0.1162645]
[1743085225070,0.2073831,86542.0,86541.0,0.1182645]
[1743085225272,0.1018,86542.0,86541.0,0.12984204]
[1743085225575,0.2183831,86542.0,86541.0,0.13484204]
[1743085225772,0.1028,86542.0,86541.0,0.13484204]
[1743085226873,0.2183831,86542.0,86541.0,0.01925754]
[1743085227179,0.6895831,86542.0,86541.0,0.00768]
[1743085227373,0.6895831,86542.0,86541.0,0.007]
[1743085228477,0.6885831,86542.0,86541.0,0.005]
[1743085228972,0.1155885,86538.0,86537.0,0.12434935]
[1743085229175,0.1163085,86538.0,86537.0,0.12498935]
[1743085229478,0.1163085,86538.0,86537.0,0.0208165]
[1743085229666,0.1163085,86538.0,86537.0,0.0201765]
[1743085229872,0.1155925,86535.0,86534.0,0.00025331]
[1743085230068,0.4771525,86535.0,86534.0,0.00025331]
[1743085230976,0.1155978,86531.0,86530.0,0.00016]
[1743085231281,0.1734281,86517.0,86514.0,0.35488]
[1743085231476,0.1156192,86515.0,86514.0,0.4712992]
[1743085231681,0.1163792,86515.0,86514.0,0.48281225]
[1743085231881,0.1163792,86515.0,86514.0,0.02108912]
[1743085232183,1.0264792,86515.0,86514.0,0.02028912]
[1743085232368,0.1156299,86509.0,86508.0,0.1734421]
[1743085232566,0.1163499,86509.0,86508.0,0.1742421]
[1743085232976,0.00072,86509.0,86508.0,0.18577476]
[1743085233172,0.00072,86509.0,86508.0,0.07014666]
[1743085233173,0.1163472,86509.0,86508.0,0.07014666]
[1743085233378,0.1163472,86509.0,86508.0,0.01233266]
[1743085233582,0.4343472,86509.0,86508.0,0.02097435]
[1743085233876,0.4343472,86509.0,86508.0,0.00072]
[1743085234080,0.4343472,86509.0,86508.0,0.1163486]
[1743085234280,0.318,86509.0,86508.0,0.1163486]
[1743085234476,0.31872,86509.0,86508.0,0.1163486]
[1743085234677,0.31372,86509.0,86508.0,0.1163486]
[1743085234876,0.31372,86509.0,86508.0,0.12962862]
[1743085234877,0.10172,86509.0,86508.0,0.12962862]
[1743085235079,0.10172,86509.0,86508.0,0.13816975]
[1743085235680,0.10272,86509.0,86508.0,0.14316975]
[1743085237078,0.00017331,86523.0,86522.0,0.1156099]
[1743085237278,0.00081331,86523.0,86522.0,0.1162499]
[1743085237474,0.11642181,86523.0,86522.0,0.1162499]
[1743085237675,0.11642181,86523.0,86522.0,0.22014]
[1743085238485,0.10081331,86523.0,86522.0,0.3357499]
[1743085238681,0.10017331,86523.0,86522.0,0.3357499]
[1743085239770,0.10017331,86523.0,86522.0,0.5663499]
[1743085242589,0.21642181,86523.0,86522.0,0.5663499]
[1743085242890,0.10081331,86523.0,86522.0,0.5663499]
[1743085243973,0.46161331,86523.0,86522.0,0.5663499]
[1743085244178,0.46161331,86523.0,86500.0,0.1]
[1743085244179,0.57722181,86523.0,86500.0,0.1]